fUST/lending_fUST_20260406
["ID","MTS","AMOUNT","RATE_DAILY","PERIOD"]
[419884903,1775466496688,519.61,0.00034608,120]
[419884904,1775466496727,583.25,0.00034608,120]
[419884905,1775466496914,519.78698605,0.00034608,120]
[419884906,1775466496949,583.25,0.00034608,120]
[419884907,1775466497164,583.25,0.00034608,120]
[419884908,1775466497424,583.25,0.00034608,120]
[419884909,1775466497651,583.25,0.00034608,120]
[419884910,1775466497876,583.25,0.00034608,120]
[419884911,1775466498122,583.25,0.00034608,120]
[419884912,1775466498681,583.25,0.00034608,120]
[419884913,1775466498921,583.25,0.00034608,120]
[419884914,1775466499133,583.25,0.00034608,120]
[419884915,1775466499353,583.25,0.00034608,120]
[419884916,1775466499572,583.25,0.00034608,120]
[419884917,1775466499783,583.27527748,0.00034608,120]
[419884918,1775466501390,10024.4,0.0003287,120]
[419884919,1775466501863,500.03,0.00034608,120]
[419884920,1775466502081,500.03,0.00034608,120]
[419884921,1775466502295,500.03,0.00034608,120]
[419884922,1775466502625,500.03,0.00034608,120]
[419884923,1775466502751,500.03,0.00034608,120]
[419884924,1775466503344,500.03,0.00034608,120]
[419884925,1775466503592,500.03,0.00034608,120]
[419884926,1775466503820,263.64561307,0.00034608,120]
[419884927,1775466504166,500.0,0.00034608,120]
[419884928,1775466504199,500.03,0.00034608,120]
[419884929,1775466504391,172.98724042,0.00034608,120]
[419884930,1775466504443,500.03,0.00034608,120]
[419884931,1775466504676,500.03,0.00034608,120]
[419884932,1775466504911,500.03,0.00034608,120]
[419884933,1775466505159,500.03,0.00034608,120]
[419884934,1775466505412,500.03,0.00034608,120]
[419884935,1775466505645,500.03,0.00034608,120]
[419884936,1775466505866,500.03,0.00034608,120]
[419884937,1775466506085,500.03,0.00034608,120]
[419884938,1775466506409,500.03,0.00034608,120]
[419884939,1775466506631,500.03,0.00034608,120]
[419884940,1775466506881,500.03,0.00034608,120]
[419884941,1775466507112,500.03,0.00034608,120]
[419884942,1775466507340,500.03,0.00034608,120]
[419884943,1775466507568,500.03,0.00034608,120]
[419884944,1775466507609,500.0,0.00034608,120]
[419884945,1775466507801,500.03,0.00034608,120]
[419884946,1775466507839,500.0,0.00034608,120]
[419884947,1775466508027,500.2386522,0.00034608,120]
[419884948,1775466508071,500.0,0.00034608,120]
[419884949,1775466508298,500.0,0.00034608,120]
[419884950,1775466508553,500.0,0.00034608,120]
[419884951,1775466508772,500.0,0.00034608,120]
[419884952,1775466509021,500.0,0.00034608,120]
[419884953,1775466509251,500.0,0.00034608,120]
[419884954,1775466511677,500.0,0.00034608,120]
[419884955,1775466511773,500.0,0.00034608,120]
[419884956,1775466513437,500.0,0.00034608,120]
[419884957,1775466513550,500.0,0.00034608,120]
[419884958,1775466513797,644.85286686,0.00034608,120]
[419884959,1775466513837,500.0,0.00034608,120]
[419884960,1775466514067,474.32741117,0.00034608,120]
[419884961,1775466514182,1886.59,0.00034608,120]
[419884962,1775466514418,1886.59,0.00034608,120]
[419884963,1775466514817,1886.59,0.00034608,120]
[419884964,1775466514868,1886.59,0.00034608,120]
[419884965,1775466515105,1886.59,0.00034608,120]
[419884966,1775466515333,1886.59,0.00034608,120]
[419884967,1775466515570,1886.59,0.00034608,120]
[419884968,1775466515806,1886.59,0.00034608,120]
[419884969,1775466516038,1886.59,0.00034608,120]
[419884970,1775466516278,1886.59,0.00034608,120]
[419884971,1775466516510,1886.59,0.00034608,120]
[419884972,1775466516676,1590.17,0.00034608,120]
[419884973,1775466516778,1886.59,0.00034608,120]
[419884974,1775466516906,1590.17,0.00034608,120]
[419884975,1775466517001,1886.59,0.00034608,120]
[419884976,1775466517139,500.0,0.00034608,120]
[419884977,1775466517173,1590.17,0.00034608,120]
[419884978,1775466517263,1886.59,0.00034608,120]
[419884979,1775466517381,500.0,0.00034608,120]
[419884980,1775466517417,1590.17,0.00034608,120]
[419884981,1775466517450,582.94723309,0.00034608,120]
[419884982,1775466517491,1886.59,0.00034608,120]
[419884983,1775466517604,500.0,0.00034608,120]
[419884984,1775466517641,1590.17,0.00034608,120]
[419884985,1775466517713,1886.59,0.00034608,120]
[419884986,1775466517848,500.0,0.00034608,120]
[419884987,1775466517881,1590.17,0.00034608,120]
[419884988,1775466517931,1886.59,0.00034608,120]
[419884989,1775466518086,500.0,0.00034608,120]
[419884990,1775466518123,1590.17,0.00034608,120]
[419884991,1775466518163,1886.59,0.00034608,120]
[419884992,1775466518324,1590.17,0.00034608,120]
[419884993,1775466518358,500.0,0.00034608,120]
[419884994,1775466518391,1886.59,0.00034608,120]
[419884995,1775466518545,1590.17,0.00034608,120]
[419884996,1775466518579,500.0,0.00034608,120]
[419884997,1775466518611,1432.47224449,0.00034608,120]
[419884999,1775466535572,267.546436,0.00032877,120]
[419885000,1775466597306,1427.52294647,0.0003013,120]
[419885001,1775466599761,889.75692615,0.00031,120]
[419885002,1775466601713,468.60920936,0.0003,120]
[419885003,1775466604682,178.83814204,0.0003,120]
[419885004,1775466608015,357.04342258,0.0003,120]
[419885005,1775466614415,172.229999,0.0003,120]
[419885006,1775466614799,738.88691538,0.0002849,120]
[419885007,1775466616844,1891.12708185,0.0002876,120]
[419885008,1775466617074,1394.53856005,0.0003013,120]
[419885009,1775466620412,200.22764388,0.000327,120]
[419885010,1775466624761,291.36358,0.00029,120]
[419885017,1775466638930,-6558.20146446,0.00013232,2]
[419885018,1775466638940,-180.78685563,0.00013233,14]
[419885019,1775466638950,-400.65107667,0.00013699,2]
[419885020,1775466638959,-1000.0,0.00013699,2]
[419885021,1775466638969,-250.0,0.00016438,4]
[419885022,1775466638978,-211.0,0.00019175,2]
[419885023,1775466638987,-300.0,0.00019175,2]
[419885024,1775466638998,-500.0,0.00019178,30]
[419885025,1775466639008,-500.0,0.00019178,30]
[419885026,1775466639017,-500.0,0.00019178,30]
[419885027,1775466639027,-500.0,0.00019178,30]
[419885028,1775466639036,-500.0,0.00019178,30]
[419885029,1775466639045,-500.0,0.00019178,30]
[419885030,1775466639055,-500.0,0.00019178,30]
[419885031,1775466639065,-500.0,0.00019178,30]
[419885032,1775466639074,-500.0,0.00019178,30]
[419885034,1775466639084,-500.0,0.00019178,30]
[419885035,1775466639093,-500.0,0.00019178,30]
[419885036,1775466639102,-500.0,0.00019178,30]
[419885037,1775466639112,-500.0,0.00019178,30]
[419885039,1775466639121,-500.0,0.00019178,30]
[419885041,1775466639132,-500.0,0.00019178,30]
[419885043,1775466639141,-500.0,0.00019178,30]
[419885044,1775466639151,-500.0,0.00019178,30]
[419885046,1775466639161,-500.0,0.00019178,30]
[419885049,1775466639170,-500.0,0.00019178,30]
[419885051,1775466639179,-500.0,0.00019178,30]
[419885053,1775466639188,-645.47923306,0.00019178,30]
[419885054,1775466639198,-300.0,0.00019561,2]
[419885055,1775466639207,-300.0,0.00019561,2]
[419885056,1775466639217,-300.0,0.00019561,2]
[419885057,1775466639226,-300.0,0.00019561,2]
[419885058,1775466639236,-300.0,0.00019561,2]
[419885059,1775466639245,-2756.9804,0.00021,2]
[419885060,1775466639255,-354.58190272,0.00021593,60]
[419885061,1775466639264,-239.0,0.00022,2]
[419885062,1775466639273,-258.0,0.00022,2]
[419885063,1775466639283,-156.0,0.00022,2]
[419885064,1775466639292,-152.0,0.00022,2]
[419885065,1775466639302,-159.54948102,0.000225,2]
[419885066,1775466639311,-518.5,0.000225,2]
[419885067,1775466639321,-2074.0,0.000225,2]
[419885068,1775466639330,-402.921,0.00022572,2]
[419885069,1775466639339,-440.0,0.00022572,2]
[419885070,1775466639348,-184.0,0.00022572,2]
[419885071,1775466639358,-165.8063559,0.00022843,2]
[419885072,1775466639367,-3898.52088402,0.000229,2]
[419885073,1775466639376,-307.85662907,0.00023,2]
[419885074,1775466639386,-239.0,0.00023,2]
[419885075,1775466639395,-258.0,0.00023,2]
[419885076,1775466639404,-158.25727827,0.00023,2]
[419885077,1775466639414,-270.83333333,0.00023,2]
[419885078,1775466639423,-300.44053716,0.00023,2]
[419885079,1775466639432,-152.0,0.00023,2]
[419885080,1775466639442,-608.0,0.00023579,2]
[419885081,1775466639451,-161.91937151,0.00023589,10]
[419885082,1775466639461,-6826.36095489,0.00023998,2]
[419885083,1775466639470,-500.0,0.00024,2]
[419885084,1775466639479,-239.0,0.00024,2]
[419885085,1775466639488,-258.0,0.00024,2]
[419885086,1775466639497,-152.0,0.00024,2]
[419885087,1775466639507,-3898.52088395,0.00024036,2]
[419885088,1775466639516,-341.03290532,0.00024388,2]
[419885089,1775466639525,-1009.93811343,0.00024551,2]
[419885090,1775466639534,-172.96,0.00024935,7]
[419885091,1775466639544,-500.0,0.00025,2]
[419885092,1775466639554,-239.0,0.00025,2]
[419885093,1775466639563,-258.0,0.00025,2]
[419885094,1775466639572,-152.0,0.00025,2]
[419885095,1775466639582,-3898.52088395,0.00025172,2]
[419885096,1775466639591,-2415.42941956,0.000252,50]
[419885097,1775466639600,-3805.64912876,0.000252,50]
[419885098,1775466639612,-563.57447442,0.000252,50]
[419885100,1775466639621,-133.74290716,0.000252,50]
[419885101,1775466639632,-3325.27471575,0.000252,50]
[419885102,1775466639641,-1013.10354769,0.000252,50]
[419885103,1775466639650,-178.5,0.00025224,10]
[419885104,1775466639660,-892.53,0.00025224,10]
[419885105,1775466639670,-985.18425831,0.00025224,2]
[419885361,1775466644042,-818.55920861,0.00025224,2]
[419885362,1775466644052,-185.0,0.00025233,16]
[419885363,1775466644061,-583.56616919,0.00025233,2]
[419885364,1775466644071,-500.0,0.00025233,2]
[419885365,1775466644080,-500.0,0.00025233,2]
[419885366,1775466644090,-500.0,0.00025233,2]
[419885367,1775466644099,-500.0,0.00025233,2]
[419885368,1775466644108,-500.0,0.00025233,2]
[419885369,1775466644118,-500.0,0.00025233,2]
[419885370,1775466644127,-500.0,0.00025233,2]
[419885371,1775466644136,-500.0,0.00025233,2]
[419885372,1775466644145,-500.0,0.00025233,2]
[419885373,1775466644155,-500.0,0.00025233,2]
[419885374,1775466644164,-588.81125242,0.00025233,2]
[419885375,1775466644174,-500.0,0.00025233,2]
[419885376,1775466644184,-500.0,0.00025233,2]
[419885377,1775466644193,-340.14071772,0.00025233,2]
[419885378,1775466644206,-159.85928228,0.00025233,2]
[419885379,1775466644215,-500.0,0.00025233,2]
[419885380,1775466644225,-500.0,0.00025233,2]
[419885381,1775466644234,-500.0,0.00025233,2]
[419885382,1775466644243,-500.0,0.00025233,2]
[419885383,1775466644252,-500.0,0.00025233,2]
[419885384,1775466644261,-500.0,0.00025233,2]
[419885385,1775466644271,-500.0,0.00025233,2]
[419885386,1775466644280,-213.0239326,0.00025233,2]
[419885455,1775466647097,-286.9760674,0.00025233,2]
[419885457,1775466647106,-500.0,0.00025233,2]
[419885459,1775466647117,-500.0,0.00025233,2]
[419885461,1775466647127,-500.0,0.00025233,2]
[419885463,1775466647137,-500.0,0.00025233,2]
[419885465,1775466647147,-500.0,0.00025233,2]
[419885467,1775466647156,-515.68573244,0.00025233,2]
[419885470,1775466647166,-13246.21892708,0.00025234,2]
[419885474,1775466647178,-3952.86633803,0.00025234,2]
[419885476,1775466647189,-921.64530477,0.00025234,2]
[419885866,1775466689062,1000.0,0.00032876,120]
[419885867,1775466703122,399.30550077,0.00027397,120]
[419885879,1775466950418,500.0,0.0003287,120]
[419885880,1775467003145,399.30550077,0.00027397,120]
[419885881,1775467059126,300.14,0.00032712,120]
[419885882,1775467094448,169.350918,0.0002842,120]
[419885883,1775467142204,656.307501,0.0002842,120]
[419885884,1775467146043,450.0,0.00032603,120]
[419885885,1775467148316,318.66790826,0.00032603,120]
[419885886,1775467202927,400.0,0.00032876,120]
[419885889,1775467216625,493.0,0.00032876,120]
[419885891,1775467229248,291.36358,0.00029,120]
[419885892,1775467235486,3815.21666752,0.000328,120]
[419885893,1775467303191,260.74525346,0.00027397,120]
[419885894,1775467303230,399.30550077,0.00027397,120]
[419885895,1775467331879,1000.0,0.00032876,120]
[419885896,1775467383743,1009.41028204,0.00027397,120]
[419885898,1775467469235,1569.531496,0.00028185,120]
[419885899,1775467504510,1219.0,0.00025953,120]
[419885900,1775467505777,1219.0,0.0002725,120]
[419885901,1775467507029,1219.0,0.00028613,120]
[419885902,1775467508318,1219.0,0.00030043,120]
[419885903,1775467509699,1219.0,0.00031545,120]
[419885904,1775467632169,1107.32,0.00032844,120]
[419885905,1775467637330,243.54799,0.0002744,120]
[419885906,1775467679019,2181.35,0.00032877,120]
[419885907,1775467688124,1602.56726973,0.00027397,120]
[419885908,1775467757643,1479.0,0.00032876,120]
[419885909,1775467782072,1006.43,0.00032877,120]
[419885910,1775467791442,49898.652308,0.00032877,120]
[419885911,1775467808406,679.0,0.0002913,120]
[419885912,1775467809747,679.0,0.00030586,120]
[419885913,1775467811048,679.0,0.00032116,120]
[419885914,1775467813277,3119.0,0.00032876,120]
[419885926,1775467833334,-1256.78638887,0.00013426,2]
[419885928,1775467833346,-3743.21361113,0.00013426,2]
[419885930,1775467833355,-1000.0,0.00013699,2]
[419885932,1775467833366,-300.0,0.00019177,2]
[419885934,1775467833377,-202.0,0.00019177,2]
[419885936,1775467833387,-1000.0,0.00019178,2]
[419885939,1775467833396,-1000.0,0.00019178,7]
[419885942,1775467833407,-784.5915123,0.00019178,7]
[419885945,1775467833417,-300.0,0.00019561,2]
[419885947,1775467833427,-300.0,0.00019561,2]
[419885949,1775467833437,-300.0,0.00019561,2]
[419885951,1775467833447,-300.0,0.00019561,2]
[419885953,1775467833457,-300.0,0.00019561,2]
[419885955,1775467833466,-300.0,0.00019561,2]
[419885956,1775467833477,-300.0,0.00019561,2]
[419885957,1775467833488,-300.0,0.00019561,2]
[419885958,1775467833497,-300.0,0.00019561,2]
[419885960,1775467833509,-300.0,0.00019561,2]
[419885961,1775467833519,-300.0,0.00019561,2]
[419885962,1775467833530,-300.0,0.00019561,2]
[419885963,1775467833540,-300.0,0.00019561,2]
[419885965,1775467833549,-300.0,0.00019561,2]
[419885966,1775467833559,-300.0,0.00019561,2]
[419885967,1775467833570,-600.0,0.00019951,2]
[419885968,1775467833579,-720.0,0.00021946,10]
[419885969,1775467833589,-191.0,0.00022,2]
[419885970,1775467833600,-206.0,0.00022,2]
[419885972,1775467833610,-155.0,0.00022,2]
[419885973,1775467833620,-187.6018308,0.00022196,2]
[419885974,1775467833629,-107.38533319,0.00022335,2]
[419885975,1775467833642,-2751.07633631,0.00022335,2]
[419885981,1775467834847,354.43617,0.00027,120]
[419886032,1775467838397,-1208.7291331,0.00022335,2]
[419886257,1775467840815,-3087.6098873,0.00022335,2]
[419886258,1775467840824,-191.0,0.00023,2]
[419886259,1775467840834,-206.0,0.00023,2]
[419886260,1775467840844,-155.0,0.00023,2]
[419886261,1775467840853,-176.21718445,0.00023562,10]
[419886262,1775467840863,-1115.37873901,0.000237,28]
[419886263,1775467840873,-1708.79419087,0.000237,28]
[419886440,1775467843358,-1065.41951585,0.000237,28]
[419886441,1775467843369,-1371.30786936,0.000237,28]
[419886443,1775467843382,-1417.02676467,0.000237,28]
[419886445,1775467843392,-573.33851542,0.000237,28]
[419886447,1775467843403,-440.0,0.00023726,2]
[419886448,1775467843413,-369.0,0.00023726,2]
[419886450,1775467843423,-184.0,0.00023726,2]
[419886452,1775467843433,-359.99176546,0.00023735,2]
[419888748,1775467888229,-2076.58378707,0.00023735,2]
[419888749,1775467888239,-500.0,0.000238,14]
[419888750,1775467888250,-500.0,0.000238,14]
[419888751,1775467888260,-500.0,0.000238,14]
[419888752,1775467888271,-500.0,0.000238,14]
[419888753,1775467888281,-500.0,0.000238,14]
[419888754,1775467888292,-540.46010989,0.000238,14]
[419888755,1775467888302,-199.9463107,0.00023822,2]
[419888756,1775467888312,-1957.856,0.00023822,2]
[419888757,1775467888322,-307.58700002,0.00023822,2]
[419888758,1775467888332,-2230.315306,0.00023822,2]
[419888759,1775467888342,-557.5788265,0.00023822,2]
[419888760,1775467888352,-500.0,0.00023835,2]
[419888761,1775467888362,-500.0,0.00023835,2]
[419888762,1775467888372,-500.0,0.00023835,2]
[419888763,1775467888382,-500.0,0.00023835,2]
[419888764,1775467888393,-500.0,0.00023835,2]
[419888765,1775467888403,-500.0,0.00023835,2]
[419888766,1775467888415,-316.46962686,0.00023835,2]
[419888767,1775467888424,-500.0,0.00023835,2]
[419888768,1775467888435,-500.0,0.00023835,2]
[419888769,1775467888445,-500.0,0.00023835,2]
[419888770,1775467888455,-332.46909721,0.00023835,2]
[419888771,1775467888465,-500.0,0.00023835,2]
[419888772,1775467888474,-500.0,0.00023835,2]
[419888773,1775467888484,-500.0,0.00023835,2]
[419888774,1775467888494,-500.0,0.00023835,2]
[419888775,1775467888504,-202.49401081,0.00023835,2]
[419888776,1775467888514,-500.0,0.00023835,2]
[419888777,1775467888524,-500.0,0.00023835,2]
[419888778,1775467888534,-500.0,0.00023835,2]
[419888779,1775467888543,-500.0,0.00023835,2]
[419888780,1775467888553,-500.0,0.00023835,2]
[419888781,1775467888564,-500.0,0.00023835,2]
[419888782,1775467888575,-452.73444742,0.00023835,2]
[419888783,1775467888586,-500.0,0.00023835,2]
[419888784,1775467888597,-500.0,0.00023835,2]
[419888785,1775467888607,-500.0,0.00023835,2]
[419888786,1775467888618,-258.88112524,0.00023835,2]
[419888787,1775467888628,-500.0,0.00023835,2]
[419888788,1775467888639,-500.0,0.00023835,2]
[419888789,1775467888652,-500.0,0.00023835,2]
[419888790,1775467888662,-500.0,0.00023835,2]
[419888791,1775467888673,-500.0,0.00023835,2]
[419888792,1775467888684,-450.0,0.00023835,2]
[419888793,1775467888694,-500.0,0.00023835,2]
[419888794,1775467888705,-590.0,0.00023835,2]
[419888795,1775467888715,-500.0,0.00023835,2]
[419888796,1775467888726,-31204.11681462,0.00023836,2]
[419888797,1775467888736,-207695.57829369,0.00023836,2]
[419888798,1775467888749,-32398.21095497,0.00023836,2]
[419888799,1775467888761,-7260.4640865,0.00023836,2]
[419888800,1775467895503,792.9979,0.00032867,120]
[419888801,1775467895561,317.4756,0.00030127,120]
[419888802,1775467911210,500.0,0.0001956,120]
[419888803,1775467911430,500.0,0.00025199,120]
[419888804,1775467911660,500.0,0.00025232,120]
[419888805,1775467911873,500.0,0.00025233,120]
[419888806,1775467912088,500.0,0.00025233,120]
[419888807,1775467912310,500.0,0.00025324,120]
[419888808,1775467912807,500.0,0.00025324,120]
[419888809,1775467912856,443.19329685,0.00025333,120]
[419888810,1775467940664,1000.0,0.00032876,120]
[419888811,1775467944131,513.84906173,0.0001956,120]
[419888812,1775467989848,600.756,0.00032867,120]
[419888813,1775467989884,600.756,0.00032867,120]
[419888814,1775467989950,600.756,0.00032867,120]
[419888815,1775467990004,600.756,0.00032867,120]
[419888818,1775468002233,517.15,0.0001956,120]
[419888819,1775468002326,517.15,0.00025199,120]
[419888820,1775468002554,517.15,0.00025232,120]
[419888821,1775468002789,517.15,0.00025233,120]
[419888822,1775468003020,517.15,0.00025233,120]
[419888823,1775468003245,517.15,0.00025324,120]
[419888824,1775468003470,517.15,0.00025324,120]
[419888825,1775468003726,517.15,0.00025333,120]
[419888826,1775468003989,517.15,0.00025333,120]
[419888827,1775468004218,517.15,0.00025333,120]
[419888828,1775468004443,517.15,0.00025333,120]
[419888829,1775468004784,517.15,0.00025333,120]
[419888830,1775468005016,517.15,0.00025333,120]
[419888831,1775468005652,517.15,0.00025333,120]
[419888832,1775468005907,517.15,0.00025333,120]
[419888833,1775468006156,517.15,0.00025333,120]
[419888834,1775468006382,517.15,0.00025333,120]
[419888835,1775468007199,517.15,0.00025333,120]
[419888836,1775468007438,517.15,0.00025333,120]
[419888838,1775468017912,517.15,0.00025333,120]
[419888839,1775468018161,517.15,0.00025333,120]
[419888840,1775468018416,517.15,0.00025333,120]
[419888841,1775468018643,517.15,0.00025333,120]
[419888842,1775468018868,517.26460068,0.00025333,120]
[419888845,1775468113293,719.0,0.00024501,120]
[419888846,1775468114659,719.0,0.00025726,120]
[419888847,1775468116722,719.0,0.00027012,120]
[419888848,1775468117651,719.0,0.00028363,120]
[419888849,1775468119007,719.0,0.00029781,120]
[419888850,1775468120348,719.0,0.0003127,120]
[419888851,1775468121808,719.0,0.00032834,120]
[419888852,1775468128147,20000.0,0.00032877,120]
[419888853,1775468136575,20000.0,0.00032877,120]
[419888854,1775468137962,20000.0,0.00032877,120]
[419888855,1775468138961,20000.0,0.00032877,120]
[419888860,1775468140473,20000.0,0.00032877,120]
[419888862,1775468168450,99999.195409,0.00032877,120]
[419888864,1775468403904,161.59306806,0.000328,120]
[419888865,1775468412299,215.0,0.00027985,120]
[419888866,1775468413927,215.0,0.00029384,120]
[419888867,1775468415378,215.0,0.00030853,120]
[419888868,1775468417425,215.0,0.00032396,120]
[419888869,1775468428217,1000.0,0.00032876,120]
[419888870,1775468430325,160.0,0.000328,120]
[419888871,1775468494717,1000.0,0.00032876,120]
[419888872,1775468711909,162.0,0.00028057,120]
[419888873,1775468713270,162.0,0.00029459,120]
[419888874,1775468714710,162.0,0.00030932,120]
[419888875,1775468716056,162.0,0.00032479,120]
[419888876,1775469010646,162.0,0.00028074,120]
[419888877,1775469012085,162.0,0.00029478,120]
[419888878,1775469013411,162.0,0.00030952,120]
[419888879,1775469014903,162.0,0.000325,120]
[419888986,1775469038216,-335.40890616,0.00013699,2]
[419888992,1775469038322,-664.59109384,0.00013699,2]
[419888993,1775469038331,-152.0,0.000209,2]
[419888994,1775469038340,-152.0,0.000219,2]
[419888995,1775469038350,-219.0,0.00022,2]
[419888996,1775469038359,-233.0,0.00022,2]
[419888997,1775469038369,-155.0,0.00022,2]
[419888998,1775469038379,-3891.0302424,0.00022335,2]
[419888999,1775469038388,-300.0,0.0002278,10]
[419889000,1775469038398,-300.0,0.0002278,10]
[419889001,1775469038408,-300.0,0.0002278,10]
[419889002,1775469038418,-300.0,0.0002278,10]
[419889003,1775469038428,-300.0,0.0002278,10]
[419889004,1775469038437,-300.0,0.0002278,10]
[419889005,1775469038447,-300.0,0.0002278,10]
[419889006,1775469038457,-300.0,0.0002278,10]
[419889007,1775469038467,-300.0,0.0002278,10]
[419889008,1775469038477,-300.0,0.0002278,10]
[419889009,1775469038486,-300.0,0.0002278,10]
[419889010,1775469038496,-300.0,0.0002278,10]
[419889011,1775469038506,-300.0,0.0002278,10]
[419889012,1775469038515,-300.0,0.0002278,10]
[419889013,1775469038525,-300.0,0.0002278,10]
[419889014,1775469038535,-152.0,0.000229,2]
[419889015,1775469038545,-219.0,0.00023,2]
[419889016,1775469038554,-233.0,0.00023,2]
[419889017,1775469038564,-155.0,0.00023,2]
[419889018,1775469038574,-250.0,0.00023014,4]
[419889019,1775469038583,-250.0,0.00023014,4]
[419889020,1775469038592,-250.0,0.00023014,4]
[419889021,1775469038602,-250.0,0.00023014,4]
[419889022,1775469038612,-250.0,0.00023014,4]
[419889023,1775469038621,-250.0,0.00023014,4]
[419889024,1775469038631,-250.0,0.00023014,4]
[419889025,1775469038640,-250.0,0.00023014,4]
[419889026,1775469038650,-250.0,0.00023014,4]
[419889027,1775469038660,-250.0,0.00023014,4]
[419889028,1775469038669,-250.0,0.00023014,4]
[419889029,1775469038679,-250.0,0.00023014,4]
[419889030,1775469038688,-160.0,0.000231,4]
[419889031,1775469038698,-600.0,0.00023235,10]
[419889032,1775469038707,-2292.26260938,0.00023274,2]
[419889033,1775469038717,-500.0,0.00023299,2]
[419889034,1775469038726,-500.0,0.00023299,2]
[419889035,1775469038736,-500.0,0.00023299,2]
[419889036,1775469038745,-583.56616919,0.00023299,2]
[419889037,1775469038755,-411.94488565,0.00023299,2]
[419889038,1775469038765,-500.0,0.00023299,2]
[419889039,1775469038775,-500.0,0.00023299,2]
[419889040,1775469038784,-500.0,0.00023299,2]
[419889041,1775469038794,-500.0,0.00023299,2]
[419889042,1775469038803,-500.0,0.00023299,2]
[419889043,1775469038813,-500.0,0.00023299,2]
[419889044,1775469038823,-500.0,0.00023299,2]
[419889045,1775469038832,-500.0,0.00023299,2]
[419889046,1775469038842,-500.0,0.00023299,2]
[419889047,1775469038852,-59360.55844289,0.000233,2]
[419889048,1775469038862,-270.83333333,0.00023312,2]
[419889049,1775469038872,-500.0,0.00023373,2]
[419889050,1775469038881,-500.0,0.00023373,2]
[419889051,1775469038891,-167.739,0.00023374,3]
[419889052,1775469038900,-500.0,0.00023399,2]
[419889053,1775469038910,-500.0,0.00023399,2]
[419889054,1775469038920,-221.52873881,0.00023399,2]
[419889055,1775469038930,-500.0,0.00023399,2]
[419889056,1775469038939,-500.0,0.00023399,2]
[419889057,1775469038948,-500.0,0.00023399,2]
[419889058,1775469038958,-500.0,0.00023399,2]
[419889059,1775469038967,-500.0,0.00023399,2]
[419889060,1775469038976,-500.0,0.00023399,2]
[419889061,1775469038986,-635.83891805,0.00023399,2]
[419889062,1775469038995,-500.0,0.00023399,2]
[419889063,1775469039005,-500.0,0.00023399,2]
[419889064,1775469039014,-156.74580757,0.00023399,2]
[419889065,1775469039023,-500.0,0.00023399,2]